[Event "*** SCC Grand Prix: Titled Tuesday Blitz"]
[Site "Chess.com"]
[Date "2020.10.13"]
[Round "3"]
[White "MaxLeto"]
[Black "Juanovic"]
[Result "1-0"]
[WhiteElo "2307"]
[BlackElo "2111"]
[TimeControl "180+1"]
[EndTime "10:29:20 PDT"]
[Termination "MaxLeto won by checkmate"]

1. g4 {[%clk 0:02:52.5]} 1... d5 {[%clk 0:02:51.5]} 2. Bg2 {[%clk 0:02:47.5]}
2... c6 {[%clk 0:02:50.3]} 3. g5 {[%clk 0:02:42.7]} 3... e5 {[%clk 0:02:48.3]}
4. d4 {[%clk 0:02:40.8]} 4... e4 {[%clk 0:02:39.3]} 5. c4 {[%clk 0:02:40.2]}
5... Be6 {[%clk 0:02:38]} 6. Nc3 {[%clk 0:02:39.1]} 6... Bb4 {[%clk 0:01:57]} 7.
Qb3 {[%clk 0:02:22.8]} 7... Bxc3+ {[%clk 0:01:48.5]} 8. bxc3 {[%clk 0:02:20.3]}
8... Qd7 {[%clk 0:01:42.3]} 9. Ba3 {[%clk 0:02:01]} 9... Ne7 {[%clk 0:01:41.5]}
10. Rb1 {[%clk 0:01:57]} 10... b6 {[%clk 0:01:39.2]} 11. Qb4 {[%clk 0:01:28.8]}
11... Na6 {[%clk 0:01:23.7]} 12. Qa4 {[%clk 0:01:12.2]} 12... Nc7 {[%clk
0:01:19]} 13. cxd5 {[%clk 0:01:03.1]} 13... cxd5 {[%clk 0:01:16.3]} 14. Qxd7+
{[%clk 0:01:02.5]} 14... Kxd7 {[%clk 0:01:10.7]} 15. Nh3 {[%clk 0:00:56.4]}
15... Rac8 {[%clk 0:00:48.5]} 16. c4 {[%clk 0:00:42.3]} 16... Na6 {[%clk
0:00:27.3]} 17. Bxe7 {[%clk 0:00:35]} 17... Kxe7 {[%clk 0:00:27]} 18. cxd5
{[%clk 0:00:31.5]} 18... Bxd5 {[%clk 0:00:23.7]} 19. Nf4 {[%clk 0:00:31.6]}
19... Bb7 {[%clk 0:00:21.9]} 20. Kd2 {[%clk 0:00:25.1]} 20... Rc4 {[%clk
0:00:19.1]} 21. e3 {[%clk 0:00:20.6]} 21... Rhc8 {[%clk 0:00:19]} 22. Rhc1
{[%clk 0:00:20.7]} 22... Nb4 {[%clk 0:00:13.2]} 23. Rxc4 {[%clk 0:00:13.9]}
23... Rxc4 {[%clk 0:00:14.1]} 24. Bf1 {[%clk 0:00:10.3]} 24... Rc2+ {[%clk
0:00:11.4]} 25. Kd1 {[%clk 0:00:10.5]} 25... Rxf2 {[%clk 0:00:09.8]} 26. Ke1
{[%clk 0:00:09.8]} 26... Rxa2 {[%clk 0:00:04.9]} 27. Rxb4 {[%clk 0:00:09.7]}
27... Rxh2 {[%clk 0:00:05.2]} 28. Bg2 {[%clk 0:00:03.8]} 28... h5 {[%clk
0:00:05]} 29. gxh6 {[%clk 0:00:02.1]} 29... gxh6 {[%clk 0:00:05.9]} 30. Ra4
{[%clk 0:00:02.6]} 30... a5 {[%clk 0:00:05.8]} 31. Kf2 {[%clk 0:00:02.8]} 31...
Rh4 {[%clk 0:00:05.4]} 32. Kg3 {[%clk 0:00:03.2]} 32... Rxf4 {[%clk 0:00:03.8]}
33. Kxf4 {[%clk 0:00:03.4]} 33... Bc6 {[%clk 0:00:04.2]} 34. Ra3 {[%clk
0:00:03.1]} 34... Ke6 {[%clk 0:00:04.7]} 35. Bxe4 {[%clk 0:00:03.6]} 35... Bd7
{[%clk 0:00:05]} 36. Bf5+ {[%clk 0:00:03.7]} 36... Kd6 {[%clk 0:00:04.9]} 37.
Bxd7 {[%clk 0:00:04.6]} 37... Kxd7 {[%clk 0:00:05.8]} 38. Rb3 {[%clk 0:00:05.5]}
38... Kc6 {[%clk 0:00:06]} 39. e4 {[%clk 0:00:06.3]} 39... a4 {[%clk 0:00:05]}
40. d5+ {[%clk 0:00:06.4]} 40... Kc5 {[%clk 0:00:05.3]} 41. Rb1 {[%clk 0:00:07]}
41... b5 {[%clk 0:00:05.5]} 42. Ke5 {[%clk 0:00:07.5]} 42... b4 {[%clk
0:00:05.9]} 43. d6 {[%clk 0:00:07.9]} 43... b3 {[%clk 0:00:06.4]} 44. d7 {[%clk
0:00:08.3]} 44... Kc4 {[%clk 0:00:06.5]} 45. d8=Q {[%clk 0:00:08.8]} 45... Kb4
{[%clk 0:00:06.4]} 46. Qd4+ {[%clk 0:00:09.4]} 46... Ka3 {[%clk 0:00:06.6]} 47.
Ra1# {[%clk 0:00:09.4]} 1-0

[Event "*** SCC Grand Prix: Titled Tuesday Blitz"]
[Site "Chess.com"]
[Date "2020.10.13"]
[Round "3"]
[White "xamax2000"]
[Black "Sanan_Sjugirov"]
[Result "1/2-1/2"]
[WhiteElo "2677"]
[BlackElo "2890"]
[TimeControl "180+1"]
[EndTime "10:29:21 PDT"]
[Termination "Game drawn by repetition"]

1. e4 {[%clk 0:02:59.5]} 1... c5 {[%clk 0:02:59.8]} 2. Nf3 {[%clk 0:02:59.2]}
2... Nc6 {[%clk 0:03:00.4]} 3. d4 {[%clk 0:02:59]} 3... cxd4 {[%clk 0:03:01.3]}
4. Nxd4 {[%clk 0:02:59.6]} 4... Nf6 {[%clk 0:03:02]} 5. Nc3 {[%clk 0:02:59.7]}
5... e5 {[%clk 0:03:02.6]} 6. Ndb5 {[%clk 0:02:59.5]} 6... d6 {[%clk 0:03:03.1]}
7. Bg5 {[%clk 0:02:59.8]} 7... a6 {[%clk 0:03:03.3]} 8. Na3 {[%clk 0:03:00.1]}
8... b5 {[%clk 0:03:03.9]} 9. Nd5 {[%clk 0:03:00.6]} 9... Be7 {[%clk 0:03:03.8]}
10. Bxf6 {[%clk 0:02:59.8]} 10... Bxf6 {[%clk 0:03:04.7]} 11. c4 {[%clk
0:03:00.3]} 11... b4 {[%clk 0:03:01]} 12. Nc2 {[%clk 0:03:00.8]} 12... O-O
{[%clk 0:02:57.5]} 13. g3 {[%clk 0:02:58.4]} 13... a5 {[%clk 0:02:51]} 14. h4
{[%clk 0:02:55.9]} 14... g6 {[%clk 0:02:46.8]} 15. Bh3 {[%clk 0:02:55.3]} 15...
Be6 {[%clk 0:02:40.1]} 16. Kf1 {[%clk 0:02:54.6]} 16... Bg7 {[%clk 0:02:38.5]}
17. Kg2 {[%clk 0:02:52.9]} 17... Nd4 {[%clk 0:02:20.9]} 18. Nxd4 {[%clk
0:02:27.1]} 18... exd4 {[%clk 0:02:21.8]} 19. Rc1 {[%clk 0:02:27.4]} 19... Re8
{[%clk 0:01:33.5]} 20. Bxe6 {[%clk 0:01:52.1]} 20... fxe6 {[%clk 0:01:31.1]} 21.
Nf4 {[%clk 0:01:52]} 21... Qf6 {[%clk 0:01:23]} 22. Nd3 {[%clk 0:01:49.1]} 22...
h5 {[%clk 0:01:12.1]} 23. Qe2 {[%clk 0:01:48]} 23... Qf7 {[%clk 0:01:09.1]} 24.
Kh2 {[%clk 0:01:20.6]} 24... Bh6 {[%clk 0:01:06]} 25. f4 {[%clk 0:01:17.5]}
25... e5 {[%clk 0:01:03]} 26. Rhf1 {[%clk 0:01:04.6]} 26... exf4 {[%clk
0:01:02]} 27. Nxf4 {[%clk 0:01:01.5]} 27... Bxf4 {[%clk 0:00:50.3]} 28. Rxf4
{[%clk 0:01:00.9]} 28... Qe6 {[%clk 0:00:48]} 29. Rcf1 {[%clk 0:00:57]} 29...
Rf8 {[%clk 0:00:43.7]} 30. Qd3 {[%clk 0:00:46.9]} 30... Qe5 {[%clk 0:00:36.5]}
31. Kg2 {[%clk 0:00:46.2]} 31... a4 {[%clk 0:00:26.1]} 32. R1f2 {[%clk
0:00:31.8]} 32... Rae8 {[%clk 0:00:24]} 33. b3 {[%clk 0:00:30.9]} 33... a3
{[%clk 0:00:23.6]} 34. Rxf8+ {[%clk 0:00:27.9]} 34... Rxf8 {[%clk 0:00:24.5]}
35. Rxf8+ {[%clk 0:00:28.4]} 35... Kxf8 {[%clk 0:00:25.2]} 36. Qf3+ {[%clk
0:00:29.2]} 36... Ke7 {[%clk 0:00:23.6]} 37. Qf4 {[%clk 0:00:29.8]} 37... d3
{[%clk 0:00:04.7]} 38. Qxe5+ {[%clk 0:00:22.5]} 38... dxe5 {[%clk 0:00:05.6]}
39. Kf3 {[%clk 0:00:15.8]} 39... d2 {[%clk 0:00:05.8]} 40. Ke2 {[%clk
0:00:15.8]} 40... d1=Q+ {[%clk 0:00:06.7]} 41. Kxd1 {[%clk 0:00:15.9]} 41... Kd6
{[%clk 0:00:07.6]} 42. Kd2 {[%clk 0:00:16]} 42... Kc5 {[%clk 0:00:08.2]} 43. Ke3
{[%clk 0:00:16.7]} 43... Kc6 {[%clk 0:00:08.6]} 44. Kf3 {[%clk 0:00:16.9]} 44...
Kc5 {[%clk 0:00:08.8]} 45. g4 {[%clk 0:00:17.5]} 45... Kc6 {[%clk 0:00:09]} 46.
gxh5 {[%clk 0:00:16.5]} 46... gxh5 {[%clk 0:00:09.9]} 47. Ke3 {[%clk 0:00:17.4]}
47... Kc5 {[%clk 0:00:10.2]} 48. Kd3 {[%clk 0:00:17.9]} 48... Kc6 {[%clk
0:00:10.6]} 49. Ke3 {[%clk 0:00:18.8]} 49... Kc5 {[%clk 0:00:11.1]} 50. Kd3
{[%clk 0:00:19.7]} 50... Kc6 {[%clk 0:00:11.5]} 51. Ke3 {[%clk 0:00:20.6]}
1/2-1/2

[Event "*** SCC Grand Prix: Titled Tuesday Blitz"]
[Site "Chess.com"]
[Date "2020.10.13"]
[Round "3"]
[White "Triumphmate"]
[Black "crescentmoon2411"]
[Result "0-1"]
[WhiteElo "2454"]
[BlackElo "2805"]
[TimeControl "180+1"]
[EndTime "10:29:21 PDT"]
[Termination "crescentmoon2411 won by resignation"]

1. e4 {[%clk 0:03:00.9]} 1... e6 {[%clk 0:02:58]} 2. Nf3 {[%clk 0:03:00.6]} 2...
d5 {[%clk 0:02:58.9]} 3. exd5 {[%clk 0:03:01.5]} 3... exd5 {[%clk 0:02:59.2]} 4.
d4 {[%clk 0:03:02.4]} 4... Nc6 {[%clk 0:02:57.4]} 5. Bd3 {[%clk 0:03:03.3]} 5...
Bd6 {[%clk 0:02:56]} 6. c3 {[%clk 0:03:03.6]} 6... Nge7 {[%clk 0:02:54.6]} 7.
Be3 {[%clk 0:03:03.7]} 7... Bf5 {[%clk 0:02:45.8]} 8. Qc2 {[%clk 0:03:02.5]}
8... Qd7 {[%clk 0:02:45.1]} 9. O-O {[%clk 0:03:02.4]} 9... O-O {[%clk 0:02:44]}
10. Nbd2 {[%clk 0:03:02.1]} 10... Bxd3 {[%clk 0:02:38.4]} 11. Qxd3 {[%clk
0:03:01.5]} 11... Nf5 {[%clk 0:02:35.1]} 12. Rae1 {[%clk 0:03:00.8]} 12... h6
{[%clk 0:02:27.4]} 13. h3 {[%clk 0:02:59.2]} 13... Rae8 {[%clk 0:02:20.9]} 14.
b3 {[%clk 0:02:50]} 14... Nce7 {[%clk 0:02:15.9]} 15. c4 {[%clk 0:02:49.3]}
15... c6 {[%clk 0:02:15]} 16. Ne5 {[%clk 0:02:44.6]} 16... Bxe5 {[%clk 0:02:08]}
17. dxe5 {[%clk 0:02:45.5]} 17... Rd8 {[%clk 0:01:50.5]} 18. Bc5 {[%clk
0:02:08.7]} 18... dxc4 {[%clk 0:01:45.9]} 19. Qxd7 {[%clk 0:02:02.5]} 19... Rxd7
{[%clk 0:01:46.8]} 20. Nxc4 {[%clk 0:02:02.9]} 20... Rfd8 {[%clk 0:01:39.8]} 21.
g4 {[%clk 0:01:45.1]} 21... Nd4 {[%clk 0:01:35.6]} 22. f4 {[%clk 0:01:31.9]}
22... b6 {[%clk 0:01:23.2]} 23. Bxe7 {[%clk 0:01:08.8]} 23... Rxe7 {[%clk
0:01:24.1]} 24. f5 {[%clk 0:01:09.3]} 24... Rd5 {[%clk 0:01:20]} 25. Rf4 {[%clk
0:00:36.2]} 25... c5 {[%clk 0:01:16]} 26. a4 {[%clk 0:00:34.7]} 26... Nxb3
{[%clk 0:01:13.5]} 27. Re3 {[%clk 0:00:29.8]} 27... Nd4 {[%clk 0:01:09]} 28. h4
{[%clk 0:00:20]} 28... a6 {[%clk 0:01:07.4]} 29. e6 {[%clk 0:00:16]} 29... b5
{[%clk 0:00:56.9]} 30. exf7+ {[%clk 0:00:15]} 30... Kxf7 {[%clk 0:00:55.7]} 31.
axb5 {[%clk 0:00:13.1]} 31... axb5 {[%clk 0:00:55]} 32. Rxe7+ {[%clk 0:00:12.9]}
32... Kxe7 {[%clk 0:00:55.9]} 33. Ne3 {[%clk 0:00:13.5]} 33... Re5 {[%clk
0:00:55.6]} 34. Kf2 {[%clk 0:00:13.2]} 34... b4 {[%clk 0:00:51.7]} 35. g5 {[%clk
0:00:13.6]} 35... hxg5 {[%clk 0:00:51]} 36. hxg5 {[%clk 0:00:14.1]} 36... b3
{[%clk 0:00:51.1]} 37. f6+ {[%clk 0:00:14.5]} 37... gxf6 {[%clk 0:00:50.3]} 38.
gxf6+ {[%clk 0:00:15.4]} 38... Kf7 {[%clk 0:00:50.4]} 39. Ng4 {[%clk 0:00:15.6]}
39... Rh5 {[%clk 0:00:37.4]} 40. Ke3 {[%clk 0:00:10.4]} 40... b2 {[%clk
0:00:18.3]} 41. Rf1 {[%clk 0:00:10.7]} 41... Nc2+ {[%clk 0:00:11.3]} 42. Kd3
{[%clk 0:00:10.2]} 42... Na3 {[%clk 0:00:11.5]} 43. Re1 {[%clk 0:00:08.4]} 43...
b1=Q+ {[%clk 0:00:11.2]} 0-1

[Event "*** SCC Grand Prix: Titled Tuesday Blitz"]
[Site "Chess.com"]
[Date "2020.10.13"]
[Round "3"]
[White "SanchezKelvin"]
[Black "chessplayer9919"]
[Result "0-1"]
[WhiteElo "2404"]
[BlackElo "2599"]
[TimeControl "180+1"]
[EndTime "10:29:22 PDT"]
[Termination "chessplayer9919 won by resignation"]

1. d4 {[%clk 0:03:00.9]} 1... Nf6 {[%clk 0:02:59.4]} 2. c4 {[%clk 0:03:00.8]}
2... c5 {[%clk 0:02:59.4]} 3. d5 {[%clk 0:03:00.6]} 3... b5 {[%clk 0:02:59.6]}
4. cxb5 {[%clk 0:03:01]} 4... a6 {[%clk 0:03:00.1]} 5. bxa6 {[%clk 0:02:55.8]}
5... g6 {[%clk 0:02:58.4]} 6. Nc3 {[%clk 0:02:55.4]} 6... Bg7 {[%clk 0:02:58.5]}
7. e4 {[%clk 0:02:55.3]} 7... O-O {[%clk 0:02:59]} 8. e5 {[%clk 0:02:55.1]} 8...
Ne8 {[%clk 0:02:58.7]} 9. Nf3 {[%clk 0:02:55]} 9... d6 {[%clk 0:02:58.1]} 10. e6
{[%clk 0:02:54.2]} 10... fxe6 {[%clk 0:02:46.6]} 11. dxe6 {[%clk 0:02:54.2]}
11... Nc7 {[%clk 0:02:46.6]} 12. Ng5 {[%clk 0:02:48.4]} 12... Bxa6 {[%clk
0:02:43.6]} 13. Bxa6 {[%clk 0:02:47.2]} 13... Rxa6 {[%clk 0:02:44.5]} 14. O-O
{[%clk 0:02:46.9]} 14... Nc6 {[%clk 0:02:44.5]} 15. Be3 {[%clk 0:02:36.5]} 15...
Rf5 {[%clk 0:02:39]} 16. g4 {[%clk 0:02:24.6]} 16... Rxg5 {[%clk 0:02:21.4]} 17.
Bxg5 {[%clk 0:02:23.8]} 17... Nxe6 {[%clk 0:02:20.9]} 18. Qe2 {[%clk 0:02:22.5]}
18... Qc8 {[%clk 0:02:15.6]} 19. Be3 {[%clk 0:02:16]} 19... Ned4 {[%clk
0:02:14.3]} 20. Bxd4 {[%clk 0:02:13.4]} 20... Nxd4 {[%clk 0:02:12.1]} 21. Qe4
{[%clk 0:02:03.3]} 21... h5 {[%clk 0:00:56.5]} 22. Nd5 {[%clk 0:01:48.9]} 22...
Qxg4+ {[%clk 0:00:51.1]} 23. Qxg4 {[%clk 0:01:46.6]} 23... hxg4 {[%clk 0:00:52]}
24. Nxe7+ {[%clk 0:01:46.4]} 24... Kf7 {[%clk 0:00:52.3]} 25. Nd5 {[%clk
0:01:43.9]} 25... Nf3+ {[%clk 0:00:52.6]} 26. Kg2 {[%clk 0:01:40.1]} 26... Bxb2
{[%clk 0:00:53.5]} 27. Rad1 {[%clk 0:01:34.2]} 27... Be5 {[%clk 0:00:53.3]} 28.
Ne3 {[%clk 0:01:31.7]} 28... Nh4+ {[%clk 0:00:53.3]} 29. Kg1 {[%clk 0:01:28.7]}
29... Nf3+ {[%clk 0:00:52.6]} 30. Kg2 {[%clk 0:01:28.2]} 30... Nxh2 {[%clk
0:00:42.8]} 31. Rh1 {[%clk 0:01:26.9]} 31... Rxa2 {[%clk 0:00:40.4]} 32. Rxh2
{[%clk 0:01:13.1]} 32... Bxh2 {[%clk 0:00:40.1]} 33. Kxh2 {[%clk 0:01:13.2]}
33... Rxf2+ {[%clk 0:00:40.1]} 34. Kg1 {[%clk 0:01:13.4]} 34... Rf3 {[%clk
0:00:38.5]} 35. Nxg4 {[%clk 0:01:10.6]} 35... Rg3+ {[%clk 0:00:38.5]} 36. Kf2
{[%clk 0:01:10]} 36... Rxg4 {[%clk 0:00:39]} 37. Rxd6 {[%clk 0:01:10.3]} 37...
c4 {[%clk 0:00:36.5]} 38. Rc6 {[%clk 0:01:10.1]} 38... Rf4+ {[%clk 0:00:31.4]}
39. Ke3 {[%clk 0:01:07.8]} 39... g5 {[%clk 0:00:31.5]} 40. Rd6 {[%clk
0:01:04.6]} 40... Kg7 {[%clk 0:00:19.6]} 41. Rc6 {[%clk 0:01:03.2]} 41... Rh4
{[%clk 0:00:19.6]} 42. Kf2 {[%clk 0:00:51.6]} 42... Rf4+ {[%clk 0:00:10.2]} 43.
Ke3 {[%clk 0:00:48.6]} 43... Kf7 {[%clk 0:00:10.3]} 44. Rd6 {[%clk 0:00:48]}
44... Ke7 {[%clk 0:00:10.5]} 45. Rg6 {[%clk 0:00:47]} 45... Rg4 {[%clk
0:00:04.5]} 46. Kf3 {[%clk 0:00:43]} 46... Rf4+ {[%clk 0:00:04.7]} 47. Ke3
{[%clk 0:00:43.2]} 47... Rf5 {[%clk 0:00:04.9]} 48. Ke4 {[%clk 0:00:42.8]} 48...
Rc5 {[%clk 0:00:03.9]} 49. Kd4 {[%clk 0:00:42.6]} 49... c3 {[%clk 0:00:04.5]}
0-1

[Event "*** SCC Grand Prix: Titled Tuesday Blitz"]
[Site "Chess.com"]
[Date "2020.10.13"]
[Round "3"]
[White "exoticprincess"]
[Black "tornikesanikidze"]
[Result "1-0"]
[WhiteElo "2880"]
[BlackElo "2664"]
[TimeControl "180+1"]
[EndTime "10:29:25 PDT"]
[Termination "exoticprincess won by resignation"]

1. d4 {[%clk 0:03:00.9]} 1... Nf6 {[%clk 0:02:56]} 2. Bg5 {[%clk 0:03:00.7]}
2... e6 {[%clk 0:02:55.3]} 3. e4 {[%clk 0:02:59.7]} 3... h6 {[%clk 0:02:55.2]}
4. Bxf6 {[%clk 0:02:59.9]} 4... Qxf6 {[%clk 0:02:55.9]} 5. Nc3 {[%clk 0:03:00]}
5... Bb4 {[%clk 0:02:52.9]} 6. Ne2 {[%clk 0:02:58.3]} 6... Nc6 {[%clk
0:02:49.5]} 7. e5 {[%clk 0:02:54.7]} 7... Qe7 {[%clk 0:02:46.9]} 8. a3 {[%clk
0:02:54.4]} 8... Ba5 {[%clk 0:02:44.7]} 9. g3 {[%clk 0:02:50.6]} 9... d6 {[%clk
0:02:43]} 10. exd6 {[%clk 0:02:50.6]} 10... cxd6 {[%clk 0:02:42.9]} 11. Bg2
{[%clk 0:02:47]} 11... d5 {[%clk 0:02:43.3]} 12. O-O {[%clk 0:02:47.1]} 12...
O-O {[%clk 0:02:42.7]} 13. Nb1 {[%clk 0:02:43.6]} 13... b5 {[%clk 0:02:22.2]}
14. Nd2 {[%clk 0:02:40.4]} 14... Bb6 {[%clk 0:02:15.4]} 15. c3 {[%clk
0:02:39.6]} 15... a5 {[%clk 0:02:13.5]} 16. Re1 {[%clk 0:02:38]} 16... Rb8
{[%clk 0:02:09.8]} 17. Nf4 {[%clk 0:02:36.6]} 17... Qf6 {[%clk 0:02:05.4]} 18.
b4 {[%clk 0:02:34.2]} 18... a4 {[%clk 0:02:02.2]} 19. Nd3 {[%clk 0:02:30.8]}
19... Bd7 {[%clk 0:01:58.9]} 20. Nf3 {[%clk 0:02:28]} 20... Rfd8 {[%clk
0:01:53.1]} 21. Qd2 {[%clk 0:02:27.9]} 21... Ne7 {[%clk 0:01:46.6]} 22. Nfe5
{[%clk 0:02:25.4]} 22... Be8 {[%clk 0:01:43.4]} 23. Nc5 {[%clk 0:02:17]} 23...
Nc8 {[%clk 0:01:42.5]} 24. Re3 {[%clk 0:02:11]} 24... Nd6 {[%clk 0:01:34.1]} 25.
Rae1 {[%clk 0:02:10.8]} 25... Nf5 {[%clk 0:01:20.9]} 26. R3e2 {[%clk 0:02:08.4]}
26... Nd6 {[%clk 0:01:18.3]} 27. h4 {[%clk 0:02:07.9]} 27... Nc4 {[%clk
0:01:10.3]} 28. Nxc4 {[%clk 0:02:05]} 28... Bxc5 {[%clk 0:01:09.2]} 29. Ne5
{[%clk 0:01:49.4]} 29... Bd6 {[%clk 0:01:09.2]} 30. Nd3 {[%clk 0:01:49]} 30...
Rbc8 {[%clk 0:01:04.1]} 31. Nc5 {[%clk 0:01:48.2]} 31... Bc6 {[%clk 0:00:58.3]}
32. Re3 {[%clk 0:01:46.5]} 32... Re8 {[%clk 0:00:54.7]} 33. h5 {[%clk 0:01:40]}
33... Qf5 {[%clk 0:00:51.9]} 34. Qe2 {[%clk 0:01:36.6]} 34... Kh7 {[%clk
0:00:44.4]} 35. f4 {[%clk 0:01:33.8]} 35... Kg8 {[%clk 0:00:41.6]} 36. Kh2
{[%clk 0:01:30.6]} 36... Qf6 {[%clk 0:00:38]} 37. Bh3 {[%clk 0:01:29.5]} 37...
Rcd8 {[%clk 0:00:34.3]} 38. Qg4 {[%clk 0:01:22.4]} 38... Kh8 {[%clk 0:00:30.8]}
39. Bf1 {[%clk 0:01:22]} 39... Qf5 {[%clk 0:00:26.8]} 40. Qd1 {[%clk 0:01:13]}
40... Rg8 {[%clk 0:00:25.6]} 41. Bd3 {[%clk 0:01:11.8]} 41... Qf6 {[%clk
0:00:25.2]} 42. Bb1 {[%clk 0:01:03.5]} 42... Rge8 {[%clk 0:00:20.7]} 43. Qc2
{[%clk 0:01:01.5]} 43... Qf5 {[%clk 0:00:20.8]} 44. Qxf5 {[%clk 0:01:00.7]}
44... exf5 {[%clk 0:00:20.7]} 45. Bxf5 {[%clk 0:01:00.1]} 45... Rxe3 {[%clk
0:00:14.2]} 46. Rxe3 {[%clk 0:01:01]} 46... Rb8 {[%clk 0:00:11.9]} 47. Bd7
{[%clk 0:00:57.2]} 47... Bxd7 {[%clk 0:00:09.4]} 48. Nxd7 {[%clk 0:00:58.1]}
48... Rd8 {[%clk 0:00:09]} 49. Nc5 {[%clk 0:00:57.6]} 49... Kg8 {[%clk
0:00:09.2]} 50. Kg2 {[%clk 0:00:57.5]} 50... Kf8 {[%clk 0:00:09]} 51. Kf3 {[%clk
0:00:57.8]} 51... Be7 {[%clk 0:00:06.2]} 52. Nb7 {[%clk 0:00:53.3]} 52... Rd7
{[%clk 0:00:05.6]} 53. Nc5 {[%clk 0:00:54.1]} 53... Rd8 {[%clk 0:00:05.8]} 54.
g4 {[%clk 0:00:52.2]} 54... Bd6 {[%clk 0:00:03]} 55. g5 {[%clk 0:00:50.8]} 55...
Bc7 {[%clk 0:00:02.1]} 56. Kg4 {[%clk 0:00:49.6]} 56... Bd6 {[%clk 0:00:02.2]}
57. g6 {[%clk 0:00:49.2]} 57... Bc7 {[%clk 0:00:01.3]} 58. gxf7 {[%clk
0:00:47.9]} 58... Kxf7 {[%clk 0:00:01.3]} 59. Kf5 {[%clk 0:00:47.5]} 59... Rd7
{[%clk 0:00:01.7]} 60. Nxd7 {[%clk 0:00:47]} 1-0

[Event "*** SCC Grand Prix: Titled Tuesday Blitz"]
[Site "Chess.com"]
[Date "2020.10.13"]
[Round "3"]
[White "oogee"]
[Black "karinachess1"]
[Result "0-1"]
[WhiteElo "2247"]
[BlackElo "2513"]
[TimeControl "180+1"]
[EndTime "10:29:25 PDT"]
[Termination "karinachess1 won on time"]

1. d4 {[%clk 0:03:00.9]} 1... Nf6 {[%clk 0:02:59.8]} 2. c4 {[%clk 0:03:00]} 2...
e6 {[%clk 0:02:59.4]} 3. Nf3 {[%clk 0:02:55]} 3... d5 {[%clk 0:02:59.4]} 4. g3
{[%clk 0:02:55.3]} 4... dxc4 {[%clk 0:02:57.1]} 5. Bg2 {[%clk 0:02:54.4]} 5...
Nc6 {[%clk 0:02:57.1]} 6. O-O {[%clk 0:02:52.5]} 6... Rb8 {[%clk 0:02:56]} 7.
Qc2 {[%clk 0:02:38.2]} 7... b5 {[%clk 0:02:55.2]} 8. Rd1 {[%clk 0:02:25.2]} 8...
Bb7 {[%clk 0:02:18.8]} 9. b3 {[%clk 0:02:23.5]} 9... Nb4 {[%clk 0:02:01.8]} 10.
Qb2 {[%clk 0:02:21.8]} 10... cxb3 {[%clk 0:02:00.6]} 11. axb3 {[%clk 0:02:18.3]}
11... a6 {[%clk 0:01:59.8]} 12. Nc3 {[%clk 0:01:51.6]} 12... Be7 {[%clk
0:01:58.4]} 13. Bg5 {[%clk 0:01:48]} 13... O-O {[%clk 0:01:55.2]} 14. Bxf6
{[%clk 0:01:46]} 14... Bxf6 {[%clk 0:01:55.3]} 15. e4 {[%clk 0:01:46.3]} 15...
Be7 {[%clk 0:01:33.3]} 16. Ne5 {[%clk 0:01:23.8]} 16... c5 {[%clk 0:01:12.9]}
17. d5 {[%clk 0:01:16.9]} 17... Bf6 {[%clk 0:01:00.2]} 18. dxe6 {[%clk
0:01:08.8]} 18... Qe7 {[%clk 0:00:53.7]} 19. exf7+ {[%clk 0:01:06.3]} 19... Kh8
{[%clk 0:00:44.3]} 20. Nd7 {[%clk 0:01:05.9]} 20... Qxf7 {[%clk 0:00:37.8]} 21.
Nxf8 {[%clk 0:00:51]} 21... Rxf8 {[%clk 0:00:37.3]} 22. e5 {[%clk 0:00:43.1]}
22... Bxe5 {[%clk 0:00:35]} 23. Bxb7 {[%clk 0:00:39]} 23... Qxb7 {[%clk
0:00:35.9]} 24. Qd2 {[%clk 0:00:28.7]} 24... Qf3 {[%clk 0:00:32.1]} 25. Rac1
{[%clk 0:00:25.4]} 25... Bd4 {[%clk 0:00:32.2]} 26. Rf1 {[%clk 0:00:24.7]} 26...
Nd3 {[%clk 0:00:30.5]} 27. Rc2 {[%clk 0:00:23.8]} 27... b4 {[%clk 0:00:19.9]}
28. Nd1 {[%clk 0:00:22.8]} 28... Ne5 {[%clk 0:00:17]} 29. Ne3 {[%clk 0:00:22.2]}
29... Qf7 {[%clk 0:00:16.3]} 30. f4 {[%clk 0:00:20.7]} 30... Ng4 {[%clk
0:00:15.1]} 31. Rf3 {[%clk 0:00:21]} 31... Re8 {[%clk 0:00:14.5]} 32. Kh1 {[%clk
0:00:06.6]} 32... Nxe3 {[%clk 0:00:13.2]} 33. Rc1 {[%clk 0:00:06.9]} 33... Ng4
{[%clk 0:00:11.9]} 34. Rcf1 {[%clk 0:00:06.8]} 34... h5 {[%clk 0:00:10.1]} 35.
h3 {[%clk 0:00:06.8]} 35... Nf6 {[%clk 0:00:10.2]} 36. f5 {[%clk 0:00:06.4]}
36... Qc7 {[%clk 0:00:09]} 37. Qg5 {[%clk 0:00:06.1]} 37... Kg8 {[%clk
0:00:09.3]} 38. g4 {[%clk 0:00:06.2]} 38... hxg4 {[%clk 0:00:09.3]} 39. hxg4
{[%clk 0:00:05.9]} 39... Re2 {[%clk 0:00:09.6]} 40. Rh3 {[%clk 0:00:06.1]} 40...
Qc6+ {[%clk 0:00:07.5]} 41. Rff3 {[%clk 0:00:06.2]} 41... Re1+ {[%clk
0:00:06.8]} 42. Kh2 {[%clk 0:00:06.1]} 42... Qd6+ {[%clk 0:00:07.2]} 43. Rhg3
{[%clk 0:00:06.6]} 43... Be5 {[%clk 0:00:06.8]} 44. Qg6 {[%clk 0:00:04.2]} 44...
Bxg3+ {[%clk 0:00:06.9]} 45. Rxg3 {[%clk 0:00:04.9]} 45... Re3 {[%clk
0:00:06.7]} 0-1